[Event "SixDays Budapest January-IMB 2023"]
[Site "Budapest"]
[Date "2023.01.25"]
[Round "5.4"]
[White "Apol, Luitjen Akselsson"]
[Black "Jakab, Attila"]
[Result "1/2-1/2"]
[ECO "C06"]
[WhiteElo "2215"]
[BlackElo "2308"]
[Annotator "TA"]
[PlyCount "156"]
[EventDate "2023.01.23"]
[EventType "tourn"]
[EventCountry "HUN"]
[SourceTitle "playchess.com"]
[Source "ChessBase"]
[SourceQuality "1"]
[TimeControl "5400+30"]

{[%evp 22,156,45,38,46,35,49,50,33,38,38,31,31,43,30,47,45,40,50,49,137,22,95,83,85,81,100,88,93,81,135,129,133,120,104,31,314,293,285,277,347,243,242,245,369,378,357,348,359,349,354,258,274,270,244,239,302,302,294,289,299,292,352,324,287,287,474,202,566,40,43,-47,-47,-47,-50,-125,-77,-77,-6,-256,-256,-256,-256,-256,-256,-256,-256,-633,-633,-506,-442,-310,-156,-156,-156,-156,-156,-156,-156,-156,-156,-156,-156,-156,-156,-156,-156,-156,-156,-156,-156,-156,-156,-156,-156,-156,-156,-156,-156,-156,0,-156,-156,-156,-156,-156,0,-156,-156,-156,-16,-16,-16,-16,8,8,8]} 1. e4 {[%emt 0:02:22]} e6 {[%emt 0:19:56]} 2. d4 {[%emt 0:00:15]} d5 {[%emt 0:00:07]} 3. Nd2 {[%emt 0:00:17]} Nf6 {[%emt 0:00:41]} 4. e5 {[%emt 0:00:08]} Nfd7 {[%emt 0:00:04]} 5. Bd3 {[%emt 0:00:05]} c5 {[%emt 0:00:03]} 6. c3 {[%emt 0:00:06]} Nc6 {[%emt 0:00:03]} 7. Ne2 {[%emt 0:00:08]} cxd4 {[%emt 0:00:19]} 8. cxd4 {[%emt 0:00:02]} f6 {[%emt 0:00:08]} 9. exf6 {[%emt 0:00:08]} Nxf6 {[%emt 0:00:08]} 10. Nf3 {[%emt 0:00:38]} Bd6 {[%emt 0:00:05]} 11. O-O {[%emt 0:00:15]} Qc7 {[%emt 0:00:16]} 12. Bd2 {[%emt 0:00:17]} O-O {[%emt 0:00:12] C06: French Tarrasch: 3...Nf6 4 e5 Nfd7 5 Bd3 main lines.} 13. Rc1 {[%emt 0:02:48]} Bd7 {[%emt 0:02:34]} 14. Re1 {[%emt 0:00:17]} Qb6 {[%emt 0:05:02] White is slightly better.} 15. Bf4 {[%emt 0:12:42]} Bxf4 {[%emt 0:00:55]} 16. Nxf4 {[%emt 0:00:02]} Qxb2 {[%emt 0:06:32]} 17. Rb1 {[%emt 0:09:51]} Qxa2 {[%emt 0:00:22][%cal Of6e4] [#]} 18. Rxb7 $146 {[%emt 0:00:33]} (18. Re2 Qa3 $11) ({Predecessor:} 18. Ng5 Nd8 19. Ra1 Qb2 20. Re2 Qc3 21. Re3 Qc7 22. Nh5 h6 23. Rg3 hxg5 24. Rxg5 Nxh5 25. Qxh5 {0-1 Warakomski,T (2502)-Swiercz,D (2456) Rubinstein Memorial 40th 2008 (6)}) 18... Rab8 {[%emt 0:02:22]} 19. Rxb8 {[%emt 0:01:34]} Rxb8 {[%emt 0:01:16]} 20. Ne5 $1 {[%emt 0:06:14]} Qb3 {[%emt 0:14:25]} ({Black should try} 20... Qa5 $14) 21. Bc2 {[%emt 0:03:45] White is more active.} (21. Nxd7 $16 Nxd7 22. Qg4 (22. Nxe6 Qxd1 23. Rxd1 Rb4 $15)) 21... Qc3 {[%emt 0:00:40]} (21... Qb7 $11) 22. Nxd7 $16 {[%emt 0:20:28]} Nxd7 {[%emt 0:00:16]} 23. Nxe6 {[%emt 0:00:15]} (23. Rxe6 $6 Nxd4 24. Bxh7+ Kxh7 $11) 23... Nf6 {[%emt 0:10:32]} 24. Re3 {[%emt 0:02:00]} Qb2 {[%emt 0:00:19]} 25. h3 {[%emt 0:01:46]} Re8 {[%emt 0:04:07]} (25... Qb4 $142) 26. Ba4 $1 {[%emt 0:02:38][%cal Bc2a4,Ba4d7,Bd7c6][%mdl 32]} Qb7 {[%emt 0:09:11]} 27. Qc1 $36 {[%emt 0:12:41][%mdl 2048] White is in control.} Rc8 {[%emt 0:01:11][%cal Oc6d4]} 28. Rg3 {[%emt 0:01:31]} (28. Rc3 $16 Ne7 29. Qg5) 28... Nh5 $2 {[%emt 0:11:25][%mdl 8192]} (28... Nxd4 $1 $14 29. Rxg7+ Kh8) 29. Rc3 $18 {[%emt 0:00:31]} Ne7 {[%emt 0:00:11]} 30. Nc5 $1 {[%emt 0:00:35]} Qb6 {[%emt 0:02:05]} 31. Bd7 {[%emt 0:03:06]} Ra8 {[%emt 0:01:06]} 32. Re3 {[%emt 0:04:33]} Qf6 {[%emt 0:01:37]} (32... Ng6 $142 33. Be6+ Kh8 34. Bxd5 Rc8) 33. Re6 {[%emt 0:00:46]} Qf8 {[%emt 0:00:48] Black is weak on the light squares} 34. Qe3 {[%emt 0:03:07]} Ng6 35. Bc6 $1 {[%emt 0:00:31][%csl LRa8,LRd5]} Rd8 {[%emt 0:01:59]} 36. Nb7 {[%emt 0:01:01][%mdl 64] Deflection} Rb8 {[%emt 0:00:26]} 37. Bxd5 Kh8 {[%emt 0:00:11]} 38. g3 {[%emt 0:03:14] Prevents Nhf4.} Nhf4 {[%emt 0:00:04]} 39. gxf4 {[%emt 0:01:06]} Nxf4 {[%emt 0:00:07]} 40. Bc6 {[%emt 0:01:39] And now Re4 would win.} Nxe6 {[%emt 0:01:43]} 41. Qxe6 {[%emt 0:00:01]} Qf4 {[%emt 0:00:56]} 42. d5 {[%emt 0:03:28]} a5 {[%emt 0:03:20]} 43. Nxa5 {[%emt 0:01:26]} h5 $2 {[%emt 0:01:34]} (43... Qf3 44. Nb7 (44. Qe1 Qxh3 45. Qe4 Qh5 $18) 44... Ra8) 44. Qg6 {[%emt 0:01:14]} (44. Qe3 $142 Qf5 45. Nb7) 44... Qc1+ {[%emt 0:00:58]} (44... Rf8 {is a better chance.} 45. Qxh5+ Kg8) 45. Kh2 $2 {[%emt 0:01:08]} (45. Kg2 $18 Rb1 46. Qxh5+ Kg8 47. Qe8+ (47. d6 Qg1+ 48. Kf3 Qd1+ {[%mdl 64] Skewer, Double Attack} 49. Kg2 Qxh5 50. d7 Qg5+ 51. Kf3 Qxa5 52. Be4 Qh5+ 53. Ke3 Qxh3+ 54. f3 Qh6+ 55. f4 Qb6+ 56. Kf3 Qb3+ 57. Kg4 Rg1+ 58. Kf5 Qb5+ 59. Ke6 Rd1 60. Ba8 Qxd7+ 61. Ke5 g6) 47... Kh7 48. Qh5+ Kg8 49. Qe8+ (49. d6 Qg1+ 50. Kf3 Qd1+ {[%mdl 64] Skewer, Double Attack} 51. Kg2 Qxh5 52. Nc4 Qg6+ 53. Kf3 Qf7+ 54. Kg2 Qxc4 55. Ba8 Rb2 56. d7 Qh4 57. d8=Q+ Qxd8 58. Kf3 Qd4 59. Kg3 Qxf2+ 60. Kg4 Rb4+) 49... Kh7 50. Qe4+ g6 51. Qe7+ Kg8 52. d6 Qf1+ 53. Kg3 Qd3+ 54. Bf3) 45... Qd2 $14 {[%emt 0:00:46][%csl LRa5,LRf2]} 46. Qg3 {[%emt 0:00:45]} (46. d6 $14 Qxa5 47. d7) 46... Rf8 $15 {[%emt 0:00:10]} 47. d6 {[%emt 0:01:04] aiming for Qe5.} Qxa5 {[%mdl 4096] Endgame KQR-KQB} 48. Be4 {[%emt 0:00:37]} (48. d7 $15) 48... Qe1 {[%emt 0:01:11]} (48... Qd2 $142 49. Kg2 Qd4) 49. Bf3 $17 {[%emt 0:00:33] [#]} g6 {[%emt 0:01:28]} 50. Kg2 $2 {[%emt 0:00:39] [#]} (50. d7 $11 {and White has nothing to worry.}) 50... Qe6 $1 $19 {[%emt 0:00:20]} 51. Bc6 Rf6 {[%emt 0:00:21]} 52. Bf3 {[%emt 0:01:08]} Qxd6 {[%emt 0:00:07]} 53. Qxd6 {[%emt 0:00:29]} Rxd6 {[%emt 0:00:05] KR-KB} 54. h4 $2 {[%emt 0:00:04]} (54. Be4) 54... Kg7 {[%emt 0:00:07]} 55. Kg3 {[%emt 0:00:04]} Kf6 {[%emt 0:00:04] Threatens to win with ...Ke5.} 56. Be4 {[%emt 0:00:36]} g5 {[%emt 0:00:18]} (56... Ke5 $19 57. f3 Rf6) 57. f3 $17 {[%emt 0:01:01]} Re6 {[%emt 0:00:32]} 58. hxg5+ {[%emt 0:00:44]} Kxg5 {[%emt 0:00:04]} 59. Kh3 {[%emt 0:00:25]} Rd6 {[%emt 0:01:11]} 60. Kg3 {[%emt 0:00:20]} h4+ {[%emt 0:00:26]} 61. Kh3 {[%emt 0:00:35]} Rd1 {[%emt 0:00:16]} 62. Bc6 {[%emt 0:00:25]} Rc1 {[%emt 0:00:51]} 63. Bb7 {[%emt 0:00:13]} Rg1 {[%emt 0:00:55]} 64. Bc6 {[%emt 0:00:43]} ({Not} 64. f4+ $2 Kxf4 65. Bc8 (65. Kxh4 Rg7 66. Kh5 Rxb7 67. Kg6 Ke5 68. Kg5 Rg7+ 69. Kh6 Rg4 70. Kh5 Kf5 71. Kh6 Kf6 72. Kh7 Rh4+ 73. Kg8 Rh3 74. Kf8 Rh8#) 65... Rg3+ 66. Kh2 (66. Kxh4 Rg8 67. Kh5 Rxc8 68. Kg6 Rf8 69. Kg7 Rf5 70. Kh6 Rf6+ 71. Kh7 Kg5 72. Kg7 Rf1 73. Kh7 Kf6 74. Kg8 Kg6 75. Kh8 Rf8#) 66... Rc3 $19) 64... Kf4 {[%emt 0:00:40]} 65. Bb7 {[%emt 0:00:27]} Rh1+ {[%emt 0:01:44]} 66. Kg2 {[%emt 0:00:02]} Rb1 {[%emt 0:00:36]} 67. Be4 {[%emt 0:00:03]} Rb8 {[%emt 0:00:38]} 68. Kh3 {[%emt 0:00:28]} Kg5 {[%emt 0:00:26]} 69. Bc6 {[%emt 0:00:25]} Rc8 {[%emt 0:00:42]} 70. Be4 {[%emt 0:00:14]} Rc1 $2 {[%emt 0:00:22]} (70... Rh8 $17 71. Bb7 Kf4) 71. Kg2 $2 {[%emt 0:00:41]} ({Only move:} 71. Bb7 $1 $11 Re1 72. Be4 (72. f4+ $2 Kxf4 73. Bc8 Rh1+ 74. Kg2 Rc1 $19)) 71... Ra1 {[%emt 0:00:10]} 72. Bc6 {[%emt 0:00:20]} Kf4 {[%emt 0:00:30]} 73. Kh3 {[%emt 0:00:21]} Rg1 $2 {[%emt 0:00:10]} ({Better is} 73... Rh1+ $17 74. Kg2 Rb1) 74. Be4 $2 {[%emt 0:00:30]} (74. Bb7 $1 $11 Kg5 75. Kh2 (75. f4+ $2 Kxf4 76. Bc8 Rg3+ 77. Kh2 Rd3 $19)) 74... Rg8 {[%emt 0:00:16]} 75. Bb7 {[%emt 0:00:42]} Rg3+ {[%emt 0:01:02]} (75... Rd8 $17 76. Bc6 Rg8) 76. Kxh4 $11 {[%emt 0:00:18] The position is equal.} Rg7 {[%emt 0:00:04][%cal Rg7h7]} 77. Be4 {[%emt 0:00:02] Repels Rh7+} Rh7+ {[%emt 0:00:05][%mdl 64] Deflection} 78. Bxh7 {[%emt 0:00:04] Be4 would kill now.} Kxf3 {[%emt 0:00:03] Never resign too early! An interesting game.   Weighted Error Value: White=0.44/Black=0.49} 1/2-1/2

[Event "SixDays Budapest January-IMB 2023"]
[Site "Budapest"]
[Date "2023.01.25"]
[Round "5.5"]
[White "To, Nhat Minh"]
[Black "Papp, Levente"]
[Result "1/2-1/2"]
[ECO "A05"]
[WhiteElo "2335"]
[BlackElo "2391"]
[Annotator "TA"]
[PlyCount "30"]
[EventDate "2023.01.23"]
[EventType "tourn"]
[EventCountry "HUN"]
[SourceTitle "playchess.com"]
[Source "ChessBase"]
[SourceQuality "1"]
[TimeControl "5400+30"]

{[%evp 13,14,-4,14]} 1. Nf3 {[%emt 0:00:04]} Nf6 {[%emt 0:00:27]} 2. g3 {[%emt 0:00:05]} g6 {[%emt 0:00:06]} 3. Bg2 {[%emt 0:00:02]} Bg7 {[%emt 0:00:05]} 4. O-O {[%emt 0:00:04]} O-O {[%emt 0:00:04]} 5. d4 {[%emt 0:00:01]} d5 {[%emt 0:00:06]} 6. c3 {[%emt 0:00:05]} c6 {[%emt 0:00:04]} 7. Bf4 {[%emt 0:00:08]} Bf5 {[%emt 0:00:05] [#]} {Predecessor:} 8. Nbd2 $146 {D02: 1 d4 d5 2 Nf3 sidelines, including 2...Nf6 3 g3 and 2...Nf6 3 Bf4.} Nbd7 9. Nh4 Be6 10. Re1 a5 11. a4 Qb6 12. Qb3 Qxb3 13. Nxb3 Ne4 14. Nd2 Nxd2 15. Bxd2 Nb6 {1-0 Erigaisi,A (2660)-Nepomniachtchi,I (2773) Chess.com Rapid Wk5 Swiss 2022 (2)} 1/2-1/2

[Event "SixDays Budapest January-IMB 2023"]
[Site "Budapest"]
[Date "2023.01.26"]
[Round "6.1"]
[White "Daroczi, Donat"]
[Black "Papp, Levente"]
[Result "1/2-1/2"]
[ECO "C15"]
[WhiteElo "2148"]
[BlackElo "2391"]
[Annotator "TA"]
[PlyCount "50"]
[EventDate "2023.01.23"]
[EventType "tourn"]
[EventCountry "HUN"]
[SourceTitle "playchess.com"]
[Source "ChessBase"]
[SourceQuality "1"]
[TimeControl "5400+30"]

{[%evp 10,50,17,6,11,8,9,12,49,48,45,45,56,33,42,36,38,36,22,8,4,8,0,0,4,0,0,0,0,0,0,0,0,0,0,0,0,0,0,0,0,0,0]} 1. e4 {[%emt 0:00:04]} e6 {[%emt 0:00:56]} 2. d4 {[%emt 0:00:06]} d5 {[%emt 0:00:04]} 3. Nc3 {[%emt 0:00:16]} Bb4 {[%emt 0:00:30]} 4. exd5 {[%emt 0:00:06]} exd5 {[%emt 0:00:05]} 5. Bd3 {[%emt 0:00:07]} Ne7 {[%emt 0:04:14]} 6. Nf3 {[%emt 0:00:26]} Nbc6 {[%emt 0:01:53][%cal Bb8c6,Bc6d4,Bd4e6][%mdl 32] C01: French: Exchange Variation.} 7. O-O {[%emt 0:00:13]} Bg4 {[%emt 0:01:44]} 8. h3 {[%emt 0:00:21]} Bxf3 {[%emt 0:12:36]} 9. Qxf3 {[%emt 0:00:06]} Nxd4 {[%emt 0:00:06]} 10. Qg4 {[%emt 0:00:22][%csl LRd4,LRg7]} Bxc3 {[%emt 0:00:08]} 11. bxc3 {[%emt 0:00:06]} Ne6 {[%emt 0:00:04] [#]} 12. Ba3 $146 {[%emt 0:00:04] f4 is the strong threat.} (12. f4 $5 {[%cal Rf4f5]} h5 13. Qe2 $14) ({Predecessor:} 12. f4 g6 13. Rb1 b6 14. Ba3 Qd7 15. Qh4 c6 16. f5 gxf5 17. Bxf5 Nxf5 18. Rxf5 {½-½ Hracek,Z (2618)-Boruchovsky,A (2558) Paleochora op 10th 2017 (7)}) 12... Qd7 {[%emt 0:11:24]} 13. f4 {[%emt 0:01:16]} g6 {[%emt 0:02:56]} 14. f5 {[%emt 0:00:36] The position is equal.} Nxf5 {[%emt 0:03:44]} 15. Bxf5 {[%emt 0:10:47]} gxf5 {[%emt 0:00:06]} 16. Qh4 {[%emt 0:09:39][%cal Oa1e1]} Qd8 $1 {[%emt 0:14:46]} 17. Qb4 {[%emt 0:13:21]} c6 {[%emt 0:09:36]} 18. Kh1 {[%emt 0:05:51]} Qc7 {[%emt 0:02:44]} 19. Qh4 {[%emt 0:01:42][%cal Oh4f6] [#] Strongly threatening Qf6!} Qd8 {[%emt 0:01:07] Against Qf6} 20. Qb4 {[%emt 0:06:24]} Qc7 {[%emt 0:10:00]} 21. Qh4 {[%emt 0:03:13][%cal Oh4f6] And now Qf6! would win.} Qd8 {[%emt 0:05:13] Wards off Qf6} 22. Qb4 {[%emt 0:13:18]} Qc7 {[%emt 0:00:44]} 23. Qh4 {[%emt 0:00:08][%cal Oh4f6] [#] Qf6! would be deadly.} Qd8 {[%emt 0:00:23] Inhibits Qf6.} 24. Qb4 {[%emt 0:00:17]} Qc7 {[%emt 0:00:07]} 25. Qh4 {[%emt 0:00:10][%cal Oh4f6] Black must now prevent Qf6!} Qd8 {[%emt 0:00:08] Wards off Qf6.   Weighted Error Value: White=0.02 (flawless) /Black=0.02 (flawless)} 1/2-1/2

[Event "SixDays Budapest January-IMB 2023"]
[Site "Budapest"]
[Date "2023.01.26"]
[Round "6.2"]
[White "Jakab, Attila"]
[Black "To, Nhat Minh"]
[Result "1/2-1/2"]
[ECO "A05"]
[WhiteElo "2308"]
[BlackElo "2335"]
[Annotator "TA"]
[PlyCount "37"]
[EventDate "2023.01.23"]
[EventType "tourn"]
[EventCountry "HUN"]
[SourceTitle "playchess.com"]
[Source "ChessBase"]
[SourceQuality "1"]
[TimeControl "5400+30"]

{[%evp 17,18,15,24]} 1. Nf3 {[%emt 0:05:19]} Nf6 {[%emt 0:00:04]} 2. g3 {[%emt 0:00:04]} g6 {[%emt 0:00:03]} 3. b3 {[%emt 0:00:05]} Bg7 {[%emt 0:00:04]} 4. Bb2 {[%emt 0:00:03]} b6 {[%emt 0:00:04]} 5. Bg2 {[%emt 0:00:04]} Bb7 {[%emt 0:00:03]} 6. O-O {[%emt 0:00:06]} c5 {[%emt 0:00:02]} 7. e3 {[%emt 0:00:05]} O-O {[%emt 0:00:04]} 8. c4 {[%emt 0:00:06]} d6 {[%emt 0:00:05]} 9. Nc3 {[%emt 0:00:04]} Nbd7 {[%emt 0:00:04] [#]} {Predecessor:} 10. d4 $146 {A30: Symmetrical English: Double Fianchetto and Hedgehog.} Ne4 11. Nxe4 Bxe4 12. Qe2 Nf6 13. Rfd1 Qc7 14. Rac1 Qb7 15. Ne1 Bxg2 16. Nxg2 a6 17. d5 b5 18. e4 bxc4 19. Rxc4 {0-1 Aravindh,C (2641)-Dubov,D (2710) Titled Tuesday intern op 23rd Mar blitz 2021 (5)} 1/2-1/2

[Event "SixDays Budapest January-IMB 2023"]
[Site "Budapest"]
[Date "2023.01.26"]
[Round "6.3"]
[White "Farkas, Gabor"]
[Black "Apol, Luitjen Akselsson"]
[Result "0-1"]
[ECO "E70"]
[WhiteElo "2321"]
[BlackElo "2215"]
[Annotator "TA"]
[PlyCount "76"]
[EventDate "2023.01.23"]
[EventType "tourn"]
[EventCountry "HUN"]
[SourceTitle "playchess.com"]
[Source "ChessBase"]
[SourceQuality "1"]
[TimeControl "5400+30"]

{[%evp 11,76,19,27,27,37,21,25,34,36,-18,14,14,38,25,23,-85,-85,-137,-128,-147,-70,-122,-117,-140,-135,-138,-133,-143,-127,-143,-134,-114,-106,-129,-127,-130,-112,-129,-103,-325,-331,-319,-297,-372,-360,-348,-362,-358,-358,-410,-435,-618,-647,-1618,-1594,-1542,-1454,-29989,-29990,-29991,-29992,-29992,-29993,-29993,-29994,-29996,-995]} 1. d4 {[%emt 0:00:03]} Nf6 {[%emt 0:00:07]} 2. c4 {[%emt 0:00:05]} g6 {[%emt 0:00:09]} 3. Nc3 {[%emt 0:00:04]} Bg7 {[%emt 0:00:12]} 4. e4 {[%emt 0:00:06]} d6 {[%emt 0:00:28]} 5. Nge2 {[%emt 0:00:07]} Nbd7 {[%emt 0:01:35]} 6. Ng3 {[%emt 0:00:09]} e5 {[%emt 0:01:40]} 7. d5 $1 {[%emt 0:00:06] E70: King's Indian: Miscellaneous lines with 4 e4, including 5 Nge2 and 5 Bd3 0-0 6 Nge2.} h5 {[%emt 0:01:03] 7...a5 is vanishing.} 8. Be2 {[%emt 0:00:35]} h4 {[%emt 0:00:57]} 9. Nf1 {[%emt 0:00:09] White has an edge.} Nc5 {[%emt 0:01:52]} 10. f3 {[%emt 0:01:20]} (10. Qc2 $14) 10... a5 {[%emt 0:00:32]} 11. Bg5 {[%emt 0:00:50] [#]} h3 $146 {[%emt 0:10:01]} ({Predecessor:} 11... Bd7 12. Nd2 Bh6 13. Bxh6 Rxh6 14. Qc2 c6 15. O-O-O a4 16. Kb1 Qa5 17. a3 Ra6 {1-0 Tregubov,P (2602)-Jones,G (2624) Corsica Masters rap 15th rapid 2011 (1.3)}) 12. g4 {[%emt 0:00:54]} Bf8 {[%emt 0:02:15][%cal Bg7f8,Bf8e7,Be7h4][%mdl 32]} 13. f4 {[%emt 0:16:27]} (13. Be3 $11 {remains equal.}) 13... Be7 $1 $17 {[%emt 0:06:36]} (13... Ncxe4 $2 14. Nxe4 Be7 15. Nxf6+ Bxf6 16. Qd2 $18) 14. Ng3 {[%emt 0:04:15] [#]} (14. fxe5 $142 Nfxe4 15. Qd4 dxe5 16. Bxe7 (16. Qxe5 $2 f6 $19) 16... Qxe7 17. Qe3 Nxc3 18. Qxc3) 14... exf4 $1 {[%emt 0:05:58]} 15. Bxf4 {[%emt 0:00:53] [#]} Nfd7 {[%emt 0:01:02]} (15... Nxg4 $1 $17 16. O-O (16. Bxg4 Bxg4 17. Qc2 Bf3 $17) 16... Ne5) 16. e5 {[%emt 0:11:42]} Nxe5 {[%emt 0:07:08]} (16... dxe5 17. Be3 $11) 17. Nce4 {[%emt 0:02:47]} Nxe4 {[%emt 0:00:41]} 18. Nxe4 {[%emt 0:00:15]} Bh4+ {[%emt 0:01:28]} 19. Ng3 {[%emt 0:03:46]} Bg5 {[%emt 0:03:16] Black has more active pieces.} 20. O-O {[%emt 0:02:30]} Bxf4 {[%emt 0:07:53]} 21. Rxf4 {[%emt 0:01:10][%cal Oc4c5]} Qe7 {[%emt 0:08:22]} 22. Qd4 {[%emt 0:00:54][%cal Oc4c5]} b6 {[%emt 0:04:02]} 23. Raf1 {[%emt 0:01:35]} Bd7 {[%emt 0:01:54]} 24. b3 {[%emt 0:02:24]} O-O-O {[%emt 0:02:12][%cal Of7f5]} 25. c5 $2 {[%emt 0:03:59] This costs White the game.} dxc5 $19 {[%emt 0:02:24]} (25... bxc5 26. Qc3 Kb7 27. b4 $17 (27. Qxa5 $2 {perishes.} Ra8 $17)) 26. Qe4 {[%emt 0:00:02]} Kb8 {[%emt 0:09:49]} 27. Ba6 {[%emt 0:04:03][%cal Od5d6] Black must now prevent d6!} Qg5 {[%emt 0:06:33]} 28. d6 {[%emt 0:03:33][%csl Ga6][%cal Re4b7]} c6 {[%emt 0:01:19]} (28... Bxg4 $2 29. Qb7#) 29. Be2 {[%emt 0:02:25]} Rhe8 {[%emt 0:02:56]} 30. Qa4 {[%emt 0:00:33]} f5 {[%emt 0:01:36][%cal Bf7f5,Bf5g4][%mdl 32] Wards off Ne4} 31. a3 {[%emt 0:04:55]} (31. R4f2 $142) 31... fxg4 {[%emt 0:00:46][%cal Oc5c4]} 32. Ne4 {[%emt 0:00:18]} Nf3+ {[%emt 0:01:01]} 33. Bxf3 {[%emt 0:02:49]} Qxf4 {[%emt 0:00:06]} 34. Qc4 {[%emt 0:00:09]} gxf3 {[%emt 0:01:20] Black mates.} 35. Qa6 {[%emt 0:00:39]} f2+ {[%emt 0:00:45]} ({Not} 35... Qxe4 36. Qxb6+ Ka8 37. Qa6+ Kb8 38. Qb6+ Ka8 39. Qa6+ Kb8 40. Qb6+ $11) 36. Rxf2 {[%emt 0:00:22]} Qg4+ {[%emt 0:00:11]} ({Inferior is} 36... Qxe4 37. Qxb6+ Ka8 38. Qa6+ Kb8 39. Qb6+ Ka8 40. Qa6+ Kb8 41. Qb6+ $11) 37. Ng3 {[%emt 0:00:28]} Re1+ {[%emt 0:00:06]} 38. Rf1 {[%emt 0:00:05]} Qd4+ {[%emt 0:00:05] Weighted Error Value: White=0.69/Black=0.06 (flawless)} 0-1

[Event "SixDays Budapest January-IMB 2023"]
[Site "Budapest"]
[Date "2023.01.26"]
[Round "6.4"]
[White "Semprun Martinez, Fernando"]
[Black "Gatineau, Yovann"]
[Result "0-1"]
[ECO "C79"]
[WhiteElo "2106"]
[BlackElo "2354"]
[Annotator "TA"]
[PlyCount "71"]
[EventDate "2023.01.23"]
[EventType "tourn"]
[EventCountry "HUN"]
[SourceTitle "playchess.com"]
[Source "ChessBase"]
[SourceQuality "1"]
[TimeControl "5400+30"]

{[%evp 15,71,-5,-11,-30,-31,-37,-33,-75,-75,-79,-85,-87,-73,-103,-117,-133,-139,-120,-74,-116,-44,-45,-44,-70,-60,-108,-111,-108,-85,-92,-22,-15,-9,-75,-64,-67,-25,-106,-101,-96,-102,-88,-55,-45,-21,-22,-12,-12,-11,-8,-8,-5,0,-703,-675,-29995,-29996,-29998]} 1. e4 {[%emt 0:00:01]} e5 {[%emt 0:04:26]} 2. Nf3 {[%emt 0:00:09]} Nc6 {[%emt 0:00:25]} 3. Bb5 {[%emt 0:00:02][%cal Bf1b5,Bb5a4,Ba4b3][%mdl 32]} a6 {[%emt 0:00:11]} 4. Ba4 {[%emt 0:00:01]} Nf6 {[%emt 0:00:02]} 5. O-O {[%emt 0:00:19]} d6 {[%emt 0:00:01]} 6. d4 {[%emt 0:01:53]} b5 {[%emt 0:02:01]} 7. Bb3 {[%emt 0:00:01]} Nxd4 {[%emt 0:00:13] is cutting edge theory.} 8. Nxd4 {[%emt 0:00:01]} exd4 {[%emt 0:00:10]} 9. c3 {[%emt 0:00:02] C79: Ruy Lopez: Steinitz-type lines with 3...a6 4 Ba4 Nf6 5 0-0 d6.} dxc3 $1 {[%emt 0:01:22]} (9... Nxe4 $2 10. Bd5 (10. cxd4 d5 $11) (10. f3 Nf6 $11) 10... Rb8 11. Bxe4 $18) 10. Nxc3 {[%emt 0:00:01][%cal Oe4e5]} Be7 {[%emt 0:00:56]} 11. e5 {[%emt 0:13:19] Black is slightly better.} dxe5 {[%emt 0:02:06]} 12. Qf3 {[%emt 0:00:31]} Bg4 {[%emt 0:02:26]} 13. Qg3 {[%emt 0:02:03][%cal Oc1g5]} O-O $1 {[%emt 0:03:45]} 14. h3 {[%emt 0:02:21]} Bh5 {[%emt 0:01:08]} 15. Qxe5 {[%emt 0:00:47]} Bd6 {[%emt 0:01:05]} 16. Qg5 {[%emt 0:00:56] [#]} Bg6 $146 {[%emt 0:20:08]} (16... h6 $142 17. Qh4 c5) ({Predecessor:} 16... h6 17. Qh4 g5 18. Bxg5 hxg5 19. Qxg5+ Kh7 20. Nd5 Nxd5 21. Qxh5+ Kg7 22. Bxd5 Rb8 {1-0 Tregubov,P (2537)-Tanenbaum,Z (2148) Titled Tuesday intern op 01st Feb-A blitz 2022 (6)}) 17. Rd1 {[%emt 0:30:07]} b4 {[%emt 0:04:45]} (17... c5 $17 {...c4 is the strong threat.} 18. Bd5 Ra7) 18. Nd5 $15 {[%emt 0:00:56]} Nxd5 {[%emt 0:05:26]} 19. Qxd5 {[%emt 0:00:36]} Qf6 {[%emt 0:01:24]} 20. Be3 {[%emt 0:02:00]} (20. Qd4 $15 {should be considered.}) 20... Qxb2 $17 {[%emt 0:05:59]} 21. Bd4 {[%emt 0:01:29]} Qe2 {[%emt 0:01:28]} 22. Bc5 {[%emt 0:01:51]} Rad8 {[%emt 0:13:36]} (22... a5 $17 {White must now prevent ...a4.} 23. Bxd6 cxd6 24. Qxd6 a4) 23. Bxd6 $1 $11 {[%emt 0:01:34]} Rxd6 {[%emt 0:01:10]} 24. Qa5 {[%emt 0:00:13]} (24. Qc5 $11 {remains equal.}) 24... Rf6 {[%emt 0:06:18]} 25. Rf1 {[%emt 0:01:48]} Qe7 {[%emt 0:05:49]} (25... Bf5 $5 {[%cal Rf5h3]} 26. Qxc7 Re8 $15) 26. Rfe1 {[%emt 0:00:46]} (26. Rac1 $1 $11) 26... Qd6 $17 {[%emt 0:01:35]} 27. Rac1 {[%emt 0:01:34] [#]} Qb6 $1 {[%emt 0:01:34]} 28. Qc5 {[%emt 0:00:01]} h6 {[%emt 0:02:08]} 29. Re7 {[%emt 0:00:41]} Rd8 {[%emt 0:02:20] Strongly threatening ...Rd2.} 30. Rxc7 {[%emt 0:00:34]} Qxc5 {[%emt 0:00:40]} 31. R1xc5 {[%emt 0:01:32]} Rd2 {[%emt 0:05:24]} 32. f3 {[%emt 0:00:12]} Bb1 $36 {[%emt 0:00:40][%mdl 2048] Black has good play.} 33. Ra5 {[%emt 0:01:39]} Kh7 {[%emt 0:01:57]} 34. Rxf7 $2 {[%emt 0:01:38][%mdl 8192] [#]} (34. Bxf7 $11 Rb2 35. Rd7) 34... Rg6 $1 $19 {[%emt 0:00:28]} 35. g4 {[%emt 0:00:31]} Rc6 {[%emt 0:00:19]} 36. Rd5 {Weighted Error Value: White=0.53/Black=0.13 (very precise)} 0-1